bitfinex-derivatives/quotes_BTCF0:USTF0_20250411
["timestamp","ask_amount","ask_price","bid_price","bid_amount"]
[1744339329714,0.0621578,80504.0,80498.0,0.0894]
[1744339329918,0.124322,80500.0,80499.0,0.1243206]
[1744339330122,0.124322,80499.0,80498.0,0.0451]
[1744339330429,0.124322,80499.0,80498.0,0.1694235]
[1744339330625,0.124322,80499.0,80498.0,0.0451]
[1744339330929,0.124322,80499.0,80498.0,0.1694235]
[1744339331131,0.124322,80499.0,80498.0,0.0451]
[1744339331424,0.1243328,80492.0,80491.0,0.12483075]
[1744339331729,0.4851328,80492.0,80491.0,0.16903075]
[1744339333033,0.4851328,80492.0,80491.0,0.00049695]
[1744339334730,0.4851328,80492.0,80491.0,0.12481885]
[1744339337634,0.4851328,80492.0,80491.0,0.00049695]
[1744339337836,0.4851328,80492.0,80491.0,0.12481885]
[1744339339431,0.4851328,80492.0,80491.0,0.00049695]
[1744339340548,0.4851328,80492.0,80491.0,0.12481885]
[1744339344243,0.4851328,80492.0,80491.0,0.00049695]
[1744339344837,0.1243405,80479.0,80462.0,0.0621827]
[1744339345044,0.1243451,80476.0,80475.0,0.29532008]
[1744339345235,0.1243451,80476.0,80475.0,0.31202125]
[1744339346451,0.1243451,80476.0,80475.0,0.29532008]
[1744339346840,0.1709451,80476.0,80475.0,0.29532008]
[1744339347039,0.2148451,80476.0,80475.0,0.29532008]
[1744339349949,0.1243559,80469.0,80468.0,0.0454]
[1744339350147,0.4851559,80469.0,80468.0,0.0454]
[1744339350741,0.5741559,80469.0,80468.0,0.0454]
[1744339352936,0.1243729,80458.0,80457.0,0.2225769]
[1744339353146,0.4851729,80458.0,80457.0,0.2225769]
[1744339354242,0.3608,80458.0,80457.0,0.35648019]
[1744339354741,0.3608,80458.0,80457.0,0.13390329]
[1744339355143,0.3608,80458.0,80457.0,0.15038276]
[1744339355643,0.3608,80458.0,80454.0,0.0458]
[1744339355843,0.0621879,80457.0,80456.0,0.0458]
[1744339357047,0.0621879,80457.0,80456.0,0.170176]
[1744339357743,0.0621879,80457.0,80456.0,0.17942836]
[1744339359751,0.0621879,80457.0,80456.0,0.07158213]
[1744339360146,0.0621879,80457.0,80456.0,0.05505236]
[1744339360457,0.0621879,80457.0,80456.0,0.17942836]
[1744339364257,0.0621879,80457.0,80456.0,0.19590046]
[1744339364754,0.3608,80458.0,80457.0,0.1243745]
[1744339364960,0.3608,80458.0,80457.0,0.2287466]
[1744339365650,0.4851729,80458.0,80457.0,0.2287466]
[1744339366146,0.3608,80458.0,80457.0,0.2287466]
[1744339367053,0.1243635,80465.0,80464.0,0.1243621]
[1744339367653,0.1243745,80458.0,80457.0,0.1865496]
[1744339368557,0.0621838,80462.0,80456.0,0.00921984]
[1744339368754,0.0621838,80462.0,80447.0,0.0621947]
[1744339368755,0.00018639,80466.0,80465.0,0.1243621]
[1744339368962,0.12454699,80466.0,80465.0,0.1243621]
[1744339369460,0.12454699,80466.0,80465.0,0.13351092]
[1744339376172,0.00018639,80466.0,80465.0,0.13351092]
[1744339377167,0.00018639,80466.0,80465.0,0.15012625]
[1744339380971,0.00018639,80466.0,80465.0,0.56702625]
[1744339382666,0.00018639,80466.0,80465.0,0.55041092]
[1744339382871,0.00018639,80466.0,80465.0,0.56703863]
[1744339383878,0.4027,80477.0,80476.0,0.1243451]
[1744339384079,0.4027,80477.0,80476.0,0.14097281]
[1744339384671,0.5270436,80477.0,80476.0,0.14097281]
[1744339384873,0.5698436,80477.0,80476.0,0.01662771]
[1744339385267,0.1243559,80469.0,80468.0,0.12454079]
[1744339385577,0.4851559,80469.0,80468.0,0.14131501]
[1744339386068,0.3608,80469.0,80468.0,0.20349371]
[1744339386276,0.1671451,80476.0,80475.0,0.1243466]
[1744339386474,0.2117451,80476.0,80475.0,0.14112082]
[1744339388168,0.2117451,80476.0,80475.0,0.1243466]
[1744339389171,0.5725451,80476.0,80475.0,0.1243466]
[1744339389684,0.1243559,80469.0,80468.0,0.00018639]
[1744339389979,0.4851559,80469.0,80468.0,0.12454389]
[1744339390577,0.5697559,80469.0,80468.0,0.12454389]
[1744339391072,0.4454,80469.0,80468.0,0.12454389]
[1744339391779,0.5697559,80469.0,80468.0,0.12454389]
[1744339392183,0.042,80469.0,80468.0,0.17054389]
[1744339392978,0.5271559,80469.0,80468.0,0.12454389]
[1744339393179,0.4028,80469.0,80468.0,0.12454389]
[1744339393376,0.4028,80469.0,80468.0,0.17054389]
[1744339394680,0.1663559,80469.0,80468.0,0.17054389]
[1744339394883,0.5271559,80469.0,80468.0,0.17054389]
[1744339395279,0.5271559,80469.0,80468.0,0.12454389]
[1744339402186,0.5271559,80469.0,80468.0,0.17064389]
[1744339402482,0.042,80469.0,80468.0,0.17064389]
[1744339402688,0.0449,80474.0,80473.0,0.1243497]
[1744339402879,0.0865,80474.0,80473.0,0.1243497]
[1744339403478,0.2108482,80474.0,80473.0,0.1243497]
[1744339403681,0.1243559,80469.0,80468.0,0.00018639]
[1744339403882,0.4851559,80469.0,80468.0,0.00018639]
[1744339404190,0.0865,80470.0,80469.0,0.1243559]
[1744339404576,0.2108544,80470.0,80469.0,0.1243559]
[1744339404779,0.5716544,80470.0,80469.0,0.1243559]
[1744339412001,0.2108544,80470.0,80469.0,0.1243559]
[1744339412198,0.5716544,80470.0,80469.0,0.1243559]
[1744339412598,0.2108544,80470.0,80469.0,0.1243559]
[1744339413900,0.5716544,80470.0,80469.0,0.1243559]
[1744339415391,0.5267544,80470.0,80469.0,0.1243559]
[1744339416408,0.4851544,80470.0,80469.0,0.1243559]
[1744339416905,0.14872523,80474.0,80473.0,0.1243497]
[1744339418308,0.1243559,80469.0,80468.0,0.12454289]
[1744339418496,0.4851559,80469.0,80468.0,0.16784289]
[1744339419107,0.5717559,80469.0,80468.0,0.04348639]
[1744339420308,0.5717559,80469.0,80468.0,0.33880647]
[1744339420510,0.5717559,80469.0,80468.0,0.29550647]
[1744339422407,0.5717559,80469.0,80468.0,0.31221861]
[1744339422909,0.5717559,80469.0,80468.0,0.43657611]
[1744339424211,0.5717559,80469.0,80468.0,0.31221774]
[1744339424810,0.5717559,80469.0,80468.0,0.01689766]
[1744339425400,0.5717559,80469.0,80468.0,0.14125516]
[1744339435113,0.5717559,80469.0,80468.0,0.01689766]
[1744339435505,0.5717559,80469.0,80468.0,0.14125516]
[1744339437514,0.5717559,80469.0,80468.0,0.01689766]
[1744339440220,0.5717559,80469.0,80468.0,0.14125516]
[1744339440415,0.4851559,80469.0,80468.0,0.14125516]
[1744339440609,0.4851559,80469.0,80468.0,0.18165516]
[1744339442023,0.4851559,80469.0,80468.0,0.01689766]
[1744339442713,0.5281559,80469.0,80468.0,0.01689766]
[1744339443813,0.8889559,80469.0,80468.0,0.01689766]
[1744339444012,1.03798027,80469.0,80468.0,0.01689766]
[1744339446829,1.03798027,80469.0,80468.0,0.00018639]
[1744339448626,0.8889559,80469.0,80468.0,0.00018639]
[1744339451129,0.8459559,80469.0,80468.0,0.00018639]
[1744339451324,0.8459559,80469.0,80468.0,0.12454389]
[1744339451526,0.8459559,80469.0,80468.0,0.14117666]
[1744339452222,0.90641722,80469.0,80468.0,0.14117666]
[1744339452533,0.90641722,80469.0,80468.0,0.12454389]
[1744339454534,0.90641722,80469.0,80468.0,0.14113067]
[1744339456135,0.8459559,80469.0,80468.0,0.14113067]
[1744339456634,0.8459559,80469.0,80468.0,0.12454389]
[1744339458835,0.8459559,80469.0,80468.0,0.00018639]
[1744339461842,0.1243559,80469.0,80468.0,0.00018639]
[1744339462951,0.2132559,80469.0,80468.0,0.00018639]
[1744339463832,0.1243606,80466.0,80465.0,9e-08]
[1744339464039,0.1243698,80460.0,80459.0,0.0406]
[1744339464239,0.4851698,80460.0,80459.0,0.05721631]
[1744339464747,0.49737092,80460.0,80459.0,0.05721631]
[1744339464935,0.58437092,80460.0,80459.0,0.05721631]
[1744339466537,0.4851698,80460.0,80459.0,0.05721631]
[1744339467151,0.4851698,80460.0,80459.0,0.18158771]
[1744339467447,0.4851698,80460.0,80459.0,0.1818237]
[1744339467642,0.4851698,80460.0,80459.0,0.0574523]
[1744339468048,0.4851698,80460.0,80459.0,0.1818237]
[1744339469252,0.67156164,80460.0,80459.0,0.1818237]
[1744339470251,0.1243745,80457.0,80456.0,0.0402]
[1744339471249,0.2119745,80457.0,80456.0,0.0402]
[1744339472655,0.1243868,80449.0,80448.0,0.0439]
[1744339472841,0.4851868,80449.0,80448.0,0.1682884]
[1744339473150,0.4851868,80449.0,80448.0,0.0439]
[1744339473647,0.5260868,80449.0,80448.0,0.0439]
[1744339473855,0.1243946,80444.0,80443.0,0.00049724]
[1744339474847,0.2070946,80444.0,80443.0,0.00049724]
[1744339475250,0.1670946,80444.0,80443.0,0.12489334]
[1744339475846,0.3608,80448.0,80447.0,0.1243899]
[1744339476045,0.4851884,80448.0,80447.0,0.1243899]
[1744339476248,0.124393,80446.0,80445.0,0.124392]
[1744339476543,0.124393,80446.0,80445.0,0.167192]
[1744339476745,0.167393,80446.0,80445.0,0.167192]
[1744339477149,0.167393,80446.0,80445.0,0.0428]
[1744339477450,0.207693,80446.0,80445.0,0.0428]
[1744339477646,0.35662084,80446.0,80445.0,0.0428]
[1744339477852,0.71742084,80446.0,80445.0,0.0428]
[1744339478248,0.71742084,80446.0,80445.0,0.167193]
[1744339479361,0.67712084,80446.0,80445.0,0.167193]
[1744339481656,0.63976462,80446.0,80445.0,0.167193]
[1744339482257,0.63976462,80446.0,80445.0,0.18382456]
[1744339483157,0.63976462,80446.0,80445.0,0.18372904]
[1744339483760,0.63976462,80446.0,80445.0,0.167193]
[1744339484558,0.47237162,80446.0,80445.0,0.167193]
[1744339484762,0.11157162,80446.0,80445.0,0.167193]
[1744339486362,0.23596162,80447.0,80446.0,0.1243915]
[1744339486552,0.23596162,80447.0,80446.0,0.2078915]
[1744339487357,0.11157162,80447.0,80446.0,0.2078915]
[1744339490756,0.00018639,80452.0,80451.0,0.1243837]
[1744339491154,0.1243837,80451.0,80450.0,0.0813]
[1744339491459,0.1243837,80451.0,80450.0,0.2056853]
[1744339491854,0.00018639,80452.0,80451.0,0.1243837]
[1744339492056,0.00018639,80452.0,80451.0,0.2056837]
[1744339492863,0.12456859,80452.0,80451.0,0.2056837]
[1744339494758,0.00018639,80452.0,80451.0,0.2056837]
[1744339495867,0.00018639,80452.0,80451.0,0.22230311]
[1744339506372,0.0383,80461.0,80460.0,0.1243698]
[1744339506675,0.18639184,80472.0,80465.0,0.1243621]
[1744339506860,0.18639184,80472.0,80465.0,0.14098151]
[1744339507067,0.09892824,80467.0,80466.0,0.1243606]
[1744339507274,0.09892824,80467.0,80466.0,0.14098001]
[1744339507475,0.22328724,80467.0,80466.0,0.14098001]
[1744339508068,0.09892824,80467.0,80466.0,0.14098001]
[1744339509068,0.22328724,80467.0,80466.0,0.14098001]
[1744339509273,0.18002824,80467.0,80466.0,0.14098001]
[1744339509668,0.14082824,80467.0,80466.0,0.14098001]
[1744339509868,0.09892824,80467.0,80466.0,0.55788001]
[1744339511877,0.09892824,80467.0,80466.0,0.5412606]
[1744339512183,0.0811,80474.0,80468.0,0.0621786]
[1744339512478,0.0407,80471.0,80470.0,0.0621772]
[1744339514783,0.00018639,80475.0,80474.0,0.1243482]
[1744339516684,0.00018639,80475.0,80474.0,0.4851482]
[1744339516981,0.04008639,80475.0,80474.0,0.1243482]
[1744339521587,0.04008639,80475.0,80474.0,0.5812482]
[1744339527793,0.04008639,80475.0,80474.0,0.5412482]
[1744339528586,0.00018639,80475.0,80474.0,0.5412482]
[1744339528785,0.00018639,80475.0,80474.0,0.6205482]
[1744339530084,0.00018639,80475.0,80474.0,0.63729329]
[1744339530280,0.0004,80490.0,80483.0,0.1243343]
[1744339530485,0.0004,80490.0,80489.0,0.124325]
[1744339530687,0.0004,80490.0,80489.0,0.14107009]
[1744339531495,0.0004,80490.0,80489.0,0.21927009]
[1744339531685,0.0004,80490.0,80489.0,0.14107009]
[1744339531885,0.1620235,80490.0,80489.0,0.14107009]
[1744339532289,0.0377,80490.0,80489.0,0.14107009]
[1744339532686,0.0004,80490.0,80489.0,0.14107009]
[1744339532902,0.0004,80490.0,80489.0,0.17917009]
[1744339533591,0.0004,80490.0,80489.0,0.60556645]
[1744339534499,0.0405,80496.0,80495.0,0.1243157]
[1744339534696,0.00018639,80498.0,80497.0,0.1243127]
[1744339534895,0.00018639,80498.0,80497.0,0.50185779]
[1744339535102,0.00018639,80498.0,80497.0,0.57965779]
[1744339536102,0.00018639,80498.0,80497.0,0.50185779]
[1744339536304,0.12449749,80498.0,80497.0,0.14105779]
[1744339536802,0.04098639,80498.0,80497.0,0.14105779]
[1744339537804,0.04098639,80498.0,80497.0,0.14093983]
[1744339540805,0.16529749,80498.0,80497.0,0.14093983]
[1744339541610,0.04098639,80498.0,80497.0,0.1243127]
[1744339541802,0.16529749,80498.0,80497.0,0.140786]
[1744339542005,0.16529749,80498.0,80497.0,0.1408311]
[1744339542313,0.04098639,80498.0,80497.0,0.1408311]
[1744339542910,0.04098639,80498.0,80497.0,0.2217311]
[1744339544713,0.3608,80503.0,80502.0,0.1243049]
[1744339545009,0.0383,80505.0,80502.0,0.01660366]
[1744339545214,0.0383,80505.0,80504.0,0.1243019]
[1744339545512,0.0383,80505.0,80504.0,0.14090556]
[1744339545709,0.0383,80505.0,80504.0,0.21930556]
[1744339546727,0.3608,80509.0,80508.0,0.1242957]
[1744339546919,0.038,80512.0,80511.0,0.124291]
[1744339547223,0.038,80512.0,80511.0,0.14089466]
[1744339547712,0.038,80512.0,80511.0,0.17959466]
[1744339548226,0.038,80512.0,80511.0,0.59649466]
[1744339550131,0.1622895,80512.0,80511.0,0.59649466]
[1744339550426,0.2381895,80512.0,80511.0,0.59649466]
[1744339550621,0.1139,80512.0,80511.0,0.59649466]
[1744339551327,0.5989895,80512.0,80511.0,0.4169]
[1744339551527,0.8489895,80512.0,80511.0,0.4169]
[1744339551728,0.8489895,80512.0,80511.0,0.3554]
[1744339551921,0.8489895,80512.0,80502.0,0.0621519]
[1744339551922,0.0621511,80505.0,80502.0,0.1864523]
[1744339552124,0.4851049,80503.0,80502.0,0.1864523]
[1744339552430,0.4851049,80503.0,80502.0,0.20319056]
[1744339552630,0.5250049,80503.0,80502.0,0.20319056]
[1744339552826,0.5624049,80503.0,80502.0,0.20319056]
[1744339555531,0.1243065,80501.0,80490.0,0.0621611]
[1744339555728,0.7502523,80503.0,80487.0,0.062164]
[1744339555729,0.1864859,80490.0,80487.0,0.062164]
[1744339555930,0.0621624,80490.0,80489.0,0.124325]
[1744339558128,0.1243327,80485.0,80484.0,0.1243316]
[1744339558328,0.1243289,80487.0,80486.0,0.0621642]
[1744339558637,0.1243327,80485.0,80484.0,0.1243323]
[1744339559231,0.1243327,80485.0,80484.0,0.1639323]
[1744339559433,0.1864938,80487.0,80486.0,0.1243296]
[1744339560537,0.1243327,80485.0,80484.0,0.1243322]
[1744339560836,0.1243327,80484.0,80483.0,0.00920429]
[1744339561037,0.1243358,80482.0,80481.0,0.12452109]
[1744339561637,0.062167,80484.0,80481.0,0.06235439]
[1744339561833,0.3608,80485.0,80484.0,0.1243327]
[1744339562743,0.1243358,80483.0,80482.0,0.0621678]
[1744339563041,0.1243358,80482.0,80481.0,0.00018639]
[1744339563243,0.1243358,80482.0,80481.0,0.12452379]
[1744339564131,0.1243358,80482.0,80481.0,0.00018639]
[1744339564333,0.1243575,80468.0,80467.0,0.47275139]
[1744339564539,0.1243516,80472.0,80469.0,0.1015773]
[1744339564744,0.1243516,80472.0,80471.0,0.1243528]
[1744339564947,0.1243469,80475.0,80472.0,0.0621755]
[1744339565142,0.1243425,80478.0,80477.0,0.124342]
[1744339565338,0.0621702,80479.0,80478.0,0.163742]
[1744339565743,0.0621702,80479.0,80478.0,0.124342]
[1744339567645,0.0994702,80479.0,80478.0,0.124342]
[1744339568148,0.0994702,80479.0,80478.0,0.165042]
[1744339568631,0.1243497,80473.0,80472.0,0.13366248]
[1744339568829,0.1243497,80473.0,80472.0,0.12435]
[1744339569040,0.1243497,80473.0,80472.0,0.16405]
[1744339569348,0.3608,80474.0,80473.0,0.1243497]
[1744339569533,0.3608,80474.0,80473.0,0.1640497]
[1744339570247,0.3608,80474.0,80473.0,0.4140497]
[1744339570546,0.3608,80474.0,80473.0,0.2013497]
[1744339572244,0.18639184,80491.0,80485.0,0.1243312]
[1744339572245,0.1243286,80487.0,80485.0,0.1243312]
[1744339572541,0.3608,80489.0,80485.0,0.1243312]
[1744339572542,0.00018639,80486.0,80485.0,0.1243312]
[1744339572742,0.03888639,80486.0,80485.0,0.1243312]
[1744339572948,0.03888639,80486.0,80485.0,0.2042312]
[1744339573535,0.00018639,80486.0,80485.0,0.2042312]
[1744339584452,0.0391,80505.0,80504.0,0.1243019]
[1744339584647,0.3608,80507.0,80506.0,0.1242988]
[1744339585259,0.3608,80507.0,80506.0,0.14108747]
[1744339586057,0.4850972,80507.0,80506.0,0.14108747]
[1744339586254,0.4850972,80507.0,80506.0,0.1242988]
[1744339586651,0.0621508,80505.0,80502.0,0.0621518]
[1744339586858,0.1243034,80503.0,80502.0,0.0621518]
[1744339587048,0.1243096,80500.0,80499.0,0.1243084]
[1744339587358,0.1243096,80500.0,80499.0,0.14087737]
[1744339587658,0.2034096,80500.0,80499.0,0.14087737]
[1744339588165,0.2427096,80500.0,80499.0,0.14087737]
[1744339588857,0.2427096,80500.0,80499.0,0.14096265]
[1744339589258,0.2427096,80500.0,80499.0,0.1243084]
[1744339590157,0.1243096,80499.0,80498.0,0.00018639]
[1744339590555,0.2016096,80499.0,80498.0,0.00018639]
[1744339591263,0.4516096,80499.0,80498.0,0.00018639]
[1744339591647,0.1243281,80487.0,80486.0,0.22354519]
[1744339591862,0.4851281,80487.0,80486.0,0.22354519]
[1744339592561,0.5631281,80487.0,80486.0,0.22354519]
[1744339593153,0.1243389,80480.0,80478.0,0.00018639]
[1744339593458,0.4851389,80480.0,80478.0,0.12452789]
[1744339593961,0.1243405,80479.0,80478.0,0.12452789]
[1744339594150,0.2042405,80479.0,80478.0,0.12452789]
[1744339594553,0.0407,80479.0,80478.0,0.14119513]
[1744339595057,0.3608,80487.0,80483.0,0.062167]
[1744339595255,0.3608,80487.0,80486.0,0.1243296]
[1744339595455,0.4,80487.0,80486.0,0.14099081]
[1744339595650,0.5243281,80487.0,80486.0,0.01666121]
[1744339595854,0.6257928,80487.0,80486.0,0.1243296]
[1744339596262,0.1243327,80485.0,80484.0,0.1243322]
[1744339596761,0.2042327,80485.0,80484.0,0.1243322]
[1744339597351,0.2042327,80485.0,80484.0,0.1641322]
[1744339598957,0.0799,80485.0,80484.0,0.18117631]
[1744339599160,0.3983,80491.0,80490.0,0.1243235]
[1744339599358,0.3997,80491.0,80490.0,0.1243235]
[1744339599568,0.3608,80491.0,80490.0,0.14142198]
[1744339599863,0.1487073,80492.0,80491.0,0.1243219]
[1744339600059,0.1487073,80492.0,80491.0,0.14142038]
[1744339600365,0.1487073,80492.0,80491.0,0.39142038]
[1744339601568,0.1487073,80492.0,80491.0,0.40354027]
[1744339601970,0.1487073,80492.0,80491.0,0.39142038]
[1744339602766,0.1487073,80492.0,80491.0,0.39191186]
[1744339602967,0.3608,80541.0,80491.0,0.79116091]
[1744339603270,0.18588967,80520.0,80519.0,0.1242787]
[1744339603458,0.18588967,80520.0,80519.0,0.14186866]
[1744339604067,0.18588967,80520.0,80519.0,0.17916866]
[1744339604566,0.18588967,80520.0,80519.0,0.18793836]
[1744339607563,0.54668967,80520.0,80511.0,0.41708639]
[1744339607768,0.1864293,80518.0,80517.0,0.1242787]
[1744339607970,0.1242895,80512.0,80511.0,0.61261332]
[1744339608773,0.0786,80513.0,80512.0,0.1242895]
[1744339609071,0.0378,80513.0,80512.0,0.1619895]
[1744339609372,0.485083,80518.0,80517.0,0.1242818]
[1744339610169,0.524383,80518.0,80517.0,0.1242818]
[1744339610871,0.1242833,80516.0,80515.0,0.0621418]
[1744339611074,0.0621438,80514.0,80511.0,0.41708639]
[1744339611274,0.1242895,80512.0,80511.0,0.54137739]
[1744339611476,0.1242895,80512.0,80511.0,0.12447739]
[1744339612775,0.1242895,80512.0,80511.0,0.00018639]
[1744339613368,0.1242895,80512.0,80511.0,0.12447739]
[1744339613878,0.1242895,80512.0,80511.0,0.00018639]
[1744339614661,0.1242895,80512.0,80511.0,0.12447739]
[1744339615575,0.4850895,80512.0,80511.0,0.12447739]
[1744339617978,0.4850895,80512.0,80511.0,0.00018639]
[1744339618393,0.1243127,80497.0,80496.0,0.1009566]
[1744339619279,0.1620127,80497.0,80496.0,0.0388]
[1744339619487,0.062158,80495.0,80491.0,0.06265775]
[1744339619688,0.1243188,80493.0,80492.0,0.24483245]
[1744339619992,0.1243173,80494.0,80493.0,0.1243188]
[1744339620183,0.1243173,80494.0,80493.0,0.2044188]
[1744339620589,0.1243173,80494.0,80493.0,0.2221083]
[1744339620788,0.4851173,80494.0,80493.0,0.2044188]
[1744339621092,0.4851173,80494.0,80493.0,0.2221085]
[1744339621392,0.4851173,80494.0,80493.0,0.2044188]
[1744339621687,0.4851173,80494.0,80493.0,0.22209029]
[1744339623798,0.4851173,80494.0,80493.0,0.23130735]
[1744339625297,0.3608,80494.0,80493.0,0.23130735]
[1744339626798,0.1243074,80501.0,80500.0,0.124308]
[1744339626998,0.1243074,80501.0,80500.0,0.14197949]
[1744339627592,0.1243074,80501.0,80500.0,0.21997949]
[1744339629405,0.3608,80502.0,80501.0,0.1243065]
[1744339629591,0.3608,80502.0,80501.0,0.22037799]
[1744339630100,0.3608,80502.0,80501.0,0.18027799]
[1744339630602,0.3608,80502.0,80501.0,0.18067513]
[1744339630801,0.4851049,80502.0,80501.0,0.21987513]
[1744339631004,0.3608,80502.0,80501.0,0.21987513]
[1744339631597,0.4851049,80502.0,80501.0,0.21987513]
[1744339631905,0.4851049,80502.0,80501.0,0.05636863]
[1744339632201,0.3608,80502.0,80501.0,0.14237513]
[1744339633203,0.3608,80502.0,80501.0,0.22007513]
[1744339633604,0.3608,80502.0,80501.0,0.22032068]
[1744339633806,0.00018639,80505.0,80504.0,0.1243019]
[1744339634003,0.00018639,80505.0,80504.0,0.14261608]
[1744339643110,0.12448669,80505.0,80504.0,0.14261608]
[1744339644214,0.20008669,80505.0,80504.0,0.14261608]
[1744339644515,0.20008669,80505.0,80504.0,0.01831418]
[1744339645112,0.45008669,80505.0,80504.0,0.01831418]
[1744339645310,0.45008669,80505.0,80497.0,0.29532008]
[1744339645311,0.1243111,80498.0,80497.0,0.29532008]
[1744339645622,0.9399511,80498.0,80497.0,0.29532008]
[1744339645820,1.1899511,80498.0,80497.0,0.29532008]
[1744339646112,0.9399511,80498.0,80497.0,0.29532008]
[1744339646317,1.2708511,80498.0,80497.0,0.29532008]
[1744339646521,0.1243204,80492.0,80488.0,0.00018639]
[1744339646713,0.1243204,80492.0,80491.0,0.00049695]
[1744339646904,0.3743204,80492.0,80491.0,0.00049695]
[1744339647312,0.4552204,80492.0,80491.0,0.00049695]
[1744339648107,0.2052204,80492.0,80491.0,0.00049695]
[1744339649615,0.21737477,80492.0,80491.0,0.00049695]
[1744339653012,0.124325,80489.0,80488.0,0.00018639]
[1744339653206,0.124325,80489.0,80451.0,0.0621917]
[1744339653207,0.0621747,80474.0,80451.0,0.0621917]
[1744339653415,0.1243575,80468.0,80467.0,0.0393971]
[1744339653814,0.2017575,80468.0,80467.0,0.0004971]
[1744339654218,0.2017575,80468.0,80452.0,0.36194196]
[1744339654219,0.1243806,80453.0,80452.0,0.36194196]
[1744339654418,0.4851806,80453.0,80452.0,0.36194196]
[1744339654822,0.4851806,80453.0,80452.0,0.48632416]
[1744339655014,0.5625806,80453.0,80452.0,0.48632416]
[1744339655719,0.5625806,80453.0,80452.0,0.37127515]
[1744339656111,0.5625806,80453.0,80452.0,0.36194196]
[1744339656820,0.9233806,80453.0,80452.0,0.36194196]
[1744339657221,0.1243915,80446.0,80445.0,0.43078039]
[1744339657416,0.4851915,80446.0,80445.0,0.43078039]
[1744339657808,0.0622026,80438.0,80430.0,0.62699272]
[1744339658014,0.1244147,80431.0,80430.0,0.1244156]
[1744339658618,0.0394,80433.0,80432.0,0.1244131]
[1744339658917,0.5252085,80437.0,80436.0,0.1244069]
[1744339660522,0.5252085,80437.0,80435.0,0.0414]
[1744339660523,0.1244085,80435.0,80434.0,0.1866113]
[1744339660726,0.1244085,80435.0,80434.0,0.2280113]
[1744339661021,0.3608,80437.0,80436.0,0.1244069]
[1744339661227,0.1243979,80442.0,80441.0,0.1243977]
[1744339661817,0.0621904,80453.0,80446.0,0.1243915]
[1744339662012,0.2184699,80447.0,80446.0,0.1243915]
[1744339662218,0.1243899,80447.0,80446.0,0.1243915]
[1744339665128,0.3608,80449.0,80445.0,0.0621959]
[1744339665319,0.4851872,80449.0,80448.0,0.1243884]
[1744339665927,0.3608,80449.0,80448.0,0.1243884]
[1744339666124,0.1243829,80452.0,80451.0,0.0621912]
[1744339666328,0.1243829,80452.0,80451.0,0.1865718]
[1744339667520,0.1243829,80452.0,80451.0,0.2271718]
[1744339667731,0.12456599,80454.0,80453.0,0.1243806]
[1744339667922,0.00018639,80454.0,80453.0,0.1243806]
[1744339668932,0.12456549,80454.0,80453.0,0.1243806]
[1744339672733,0.12456549,80454.0,80453.0,0.1617806]
[1744339675631,0.12456549,80454.0,80453.0,0.0374]
[1744339676332,0.16106549,80454.0,80453.0,0.0374]
[1744339676926,0.16106549,80454.0,80453.0,0.1617806]
[1744339680334,0.16106549,80454.0,80453.0,0.0374]
[1744339680641,0.1244038,80441.0,80440.0,0.1243993]
[1744339683237,0.1243968,80443.0,80442.0,0.1243961]
[1744339683834,0.1243968,80443.0,80442.0,0.2386961]
[1744339685738,0.062197,80445.0,80444.0,0.1243946]
[1744339687939,0.1244038,80438.0,80437.0,0.00940849]
[1744339688143,0.1244054,80437.0,80436.0,0.0395]
[1744339688337,0.1616054,80437.0,80436.0,0.1244069]
[1744339688835,0.1616054,80437.0,80436.0,0.2022069]
[1744339689840,0.1616054,80437.0,80436.0,0.21149074]
[1744339693945,0.1866211,80433.0,80430.0,0.1244158]
[1744339694144,0.0778,80432.0,80431.0,0.0388]
[1744339694444,0.5630131,80432.0,80431.0,0.1632147]
[1744339694647,0.5630131,80432.0,80430.0,0.1023079]
[1744339694648,0.1244147,80431.0,80430.0,0.0401]
[1744339694849,0.062213,80424.0,80421.0,0.1866396]
[1744339695049,0.4230135,80423.0,80422.0,0.0394]
[1744339695246,0.5035135,80423.0,80422.0,0.1638281]
[1744339695443,0.5035135,80423.0,80421.0,0.0383]
[1744339695645,0.1244317,80420.0,80419.0,0.00049739]
[1744339698549,0.1244317,80420.0,80419.0,0.12493059]
[1744339698757,0.3608,80422.0,80421.0,0.1244301]
[1744339698949,0.3992,80422.0,80421.0,0.1244301]
[1744339699357,0.5236286,80422.0,80421.0,0.2047301]
[1744339700156,0.3992,80422.0,80421.0,0.2047301]
[1744339701058,0.5236286,80422.0,80421.0,0.2047301]
[1744339701858,0.3992,80422.0,80419.0,0.00049739]
[1744339702162,0.1244317,80420.0,80419.0,0.00049739]
[1744339702653,0.1244317,80420.0,80410.0,0.1145]
[1744339702654,0.1244456,80411.0,80410.0,0.1145]
[1744339702956,0.1244456,80411.0,80410.0,0.2389472]
[1744339703160,0.1244456,80411.0,80410.0,0.0763]
[1744339703465,0.1244611,80401.0,80400.0,0.1]
[1744339703654,0.4852611,80401.0,80400.0,0.1]
[1744339703855,0.1244688,80396.0,80394.0,0.1244713]
[1744339704053,0.1244659,80398.0,80397.0,0.1866973]
[1744339704258,0.0622318,80400.0,80399.0,0.1244642]
[1744339704465,0.0622254,80408.0,80407.0,0.1244503]
[1744339705158,0.1244518,80407.0,80406.0,0.0812]
[1744339705656,0.1647518,80407.0,80406.0,0.0812]
[1744339705857,0.1647518,80407.0,80406.0,0.2056534]
[1744339707058,0.1244518,80407.0,80406.0,0.2056534]
[1744339707862,0.041,80408.0,80407.0,0.1244518]
[1744339708063,0.00018651,80409.0,80408.0,0.1244503]
[1744339708463,0.00018651,80409.0,80408.0,0.2013503]
[1744339711978,0.12463521,80409.0,80408.0,0.2013503]
[1744339715062,0.16233521,80409.0,80408.0,0.2013503]
[1744339715264,0.062229,80403.0,80400.0,0.2489213]
[1744339715464,0.0377,80402.0,80401.0,0.0388]
[1744339715665,0.0377,80402.0,80401.0,0.0786]
[1744339715871,0.2021595,80402.0,80401.0,0.2030611]
[1744339716166,0.0777,80402.0,80397.0,0.0378]
[1744339716375,0.1244688,80396.0,80394.0,0.13357764]
[1744339716580,0.1244688,80396.0,80394.0,0.00910684]
[1744339716869,0.0404,80397.0,80395.0,0.07989754]
[1744339717173,0.0622302,80402.0,80401.0,0.1244611]
[1744339717473,0.0404,80402.0,80401.0,0.1244611]
[1744339717773,0.1244572,80404.0,80403.0,0.1244564]
[1744339718368,0.4852549,80405.0,80404.0,0.1244564]
[1744339718867,0.17372201,80410.0,80407.0,0.1244503]
[1744339719068,0.1244508,80408.0,80407.0,0.1244503]
[1744339719268,0.11149841,80410.0,80408.0,0.1244503]
[1744339719674,0.23594571,80410.0,80408.0,0.1244503]
[1744339720175,0.12463521,80409.0,80408.0,0.1244503]
[1744339720368,0.00018651,80409.0,80408.0,0.1244503]
[1744339721368,0.12463521,80409.0,80408.0,0.1244503]
[1744339721568,0.16323521,80409.0,80408.0,0.1244503]